fUST/lending_fUST_20240912
["ID","MTS","AMOUNT","RATE_DAILY","PERIOD"]
[337801757,1726125268134,-500.0,0.00016986,2]
[337801758,1726125268161,-3323.74,0.00016986,2]
[337801759,1726125268192,-500.0,0.00016986,2]
[337801760,1726125268226,-640.26,0.00016986,2]
[337801761,1726125268250,-500.0,0.00016986,2]
[337801762,1726125268273,-515.74,0.00016986,2]
[337801763,1726125268297,-538.49,0.00016986,2]
[337801764,1726125268321,-500.0,0.00016986,2]
[337801765,1726125268348,-500.0,0.00016986,2]
[337801766,1726125268372,-737.57,0.00016986,2]
[337801767,1726125268396,-500.0,0.00016986,2]
[337801768,1726125268419,-500.0,0.00016986,2]
[337801769,1726125268444,-500.0,0.00016986,2]
[337801770,1726125268468,-500.0,0.00016986,2]
[337801771,1726125268493,-632.08,0.00016986,2]
[337801772,1726125268517,-624.91668916,0.00016986,2]
[337801773,1726125334468,-3000.0,0.00016255,2]
[337801774,1726125334506,-300.0,0.00016437,2]
[337801775,1726125334535,-300.0,0.00016437,2]
[337801776,1726125334559,-500.0,0.00016438,2]
[337801777,1726125334585,-500.0,0.00016438,2]
[337801778,1726125334611,-500.0,0.00016438,2]
[337801779,1726125334637,-500.0,0.00016438,2]
[337801780,1726125334661,-500.0,0.00016438,2]
[337801781,1726125334686,-500.0,0.00016438,2]
[337801782,1726125334711,-500.0,0.00016438,2]
[337801783,1726125334736,-500.0,0.00016438,2]
[337801784,1726125334761,-505.54166548,0.00016438,2]
[337801785,1726125334787,-500.66180874,0.00016438,2]
[337801786,1726125334812,-500.0,0.00016438,2]
[337801787,1726125334836,-500.0,0.00016438,2]
[337801788,1726125334860,-500.0,0.00016438,2]
[337801789,1726125334883,-500.0,0.00016438,2]
[337801790,1726125334908,-500.21035737,0.00016438,2]
[337801791,1726125334932,-500.0,0.00016438,2]
[337801792,1726125334956,-500.0,0.00016438,2]
[337801793,1726125334981,-500.0,0.00016438,2]
[337801794,1726125335006,-500.0,0.00016438,2]
[337801795,1726125335033,-500.0,0.00016438,2]
[337801796,1726125335058,-500.0,0.00016438,2]
[337801797,1726125335082,-500.0,0.00016438,2]
[337801798,1726125335106,-533.8451906,0.00016438,2]
[337801799,1726125335131,-500.0,0.00016438,2]
[337801800,1726125335158,-500.0,0.00016438,2]
[337801801,1726125335184,-1009.6,0.00016438,2]
[337801802,1726125335211,-500.0,0.00016438,2]
[337801803,1726125335238,-500.0,0.00016438,2]
[337801804,1726125335268,-500.0,0.00016438,2]
[337801805,1726125335293,-1304.35,0.00016438,2]
[337801806,1726125335318,-500.0,0.00016438,2]
[337801807,1726125335342,-500.0,0.00016438,2]
[337801808,1726125335366,-504.66581372,0.00016438,2]
[337801809,1726125335391,-500.0,0.00016438,2]
[337801810,1726125335414,-500.0,0.00016438,2]
[337801811,1726125335441,-7104.91,0.00016438,2]
[337801812,1726125335466,-500.0,0.00016438,2]
[337801813,1726125335490,-500.0,0.00016438,2]
[337801814,1726125335514,-500.0,0.00016438,2]
[337801815,1726125335539,-500.0,0.00016438,2]
[337801816,1726125335563,-500.0,0.00016438,2]
[337801817,1726125335587,-500.0,0.00016438,2]
[337801818,1726125335612,-500.0,0.00016438,2]
[337801819,1726125335636,-500.0,0.00016438,2]
[337801820,1726125335661,-501.39645571,0.00016438,2]
[337801821,1726125335686,-500.0,0.00016438,2]
[337801822,1726125335711,-500.0,0.00016438,2]
[337801823,1726125335735,-500.0,0.00016438,2]
[337801824,1726125335760,-501.8790204,0.00016438,2]
[337801825,1726125335785,-500.0,0.00016438,2]
[337801826,1726125335811,-500.0,0.00016438,2]
[337801827,1726125335835,-500.0,0.00016438,2]
[337801828,1726125335858,-500.0,0.00016438,2]
[337801829,1726125336158,-500.0,0.00016438,2]
[337801830,1726125336183,-500.0,0.00016438,2]
[337801831,1726125336206,-500.0,0.00016438,2]
[337801832,1726125336230,-599.12,0.00016438,2]
[337801833,1726125336254,-500.0,0.00016438,2]
[337801834,1726125336277,-500.0,0.00016438,2]
[337801835,1726125336299,-507.67069557,0.00016438,2]
[337801836,1726125336322,-500.0,0.00016438,2]
[337801837,1726125336345,-500.0,0.00016438,2]
[337801838,1726125336370,-500.0,0.00016438,2]
[337801839,1726125336395,-500.0,0.00016438,2]
[337801840,1726125336418,-525.72549566,0.00016438,2]
[337801841,1726125336443,-500.0,0.00016438,2]
[337801842,1726125336465,-1270.49,0.00016438,2]
[337801843,1726125336487,-500.0,0.00016438,2]
[337801844,1726125336511,-500.0,0.00016438,2]
[337801845,1726125336534,-500.0,0.00016438,2]
[337801846,1726125336563,-500.0,0.00016438,2]
[337801847,1726125336589,-549.06,0.00016438,2]
[337801848,1726125336613,-500.0,0.00016438,2]
[337801849,1726125336637,-553.07,0.00016438,2]
[337801850,1726125336661,-500.0,0.00016438,2]
[337801851,1726125336685,-500.0,0.00016438,2]
[337801852,1726125336708,-500.0,0.00016438,2]
[337801853,1726125336732,-163.6601284,0.00016438,2]
[337801854,1726125336763,-500.0,0.00016438,2]
[337801855,1726125336790,-500.0,0.00016438,2]
[337801856,1726125336818,-500.0,0.00016438,2]
[337801857,1726125336844,-545.01704193,0.00016438,2]
[337801858,1726125336867,-500.0,0.00016438,2]
[337801859,1726125336890,-500.0,0.00016438,2]
[337801860,1726125336914,-500.0,0.00016712,2]
[337801861,1726125336937,-500.0,0.00016712,2]
[337801862,1726125336961,-500.0,0.00016712,2]
[337801863,1726125336985,-500.0,0.00016712,2]
[337801864,1726125337008,-500.0,0.00016712,2]
[337801865,1726125337032,-500.0,0.00016712,2]
[337801866,1726125337056,-500.0,0.00016712,2]
[337801867,1726125337079,-500.0,0.00016712,2]
[337801868,1726125337102,-500.0,0.00016712,2]
[337801869,1726125337125,-577.32123806,0.00016712,2]
[337801870,1726125337149,-500.0,0.00016712,2]
[337801871,1726125337173,-500.0,0.00016712,2]
[337801872,1726125337198,-345.41,0.00016712,2]
[337801873,1726125337221,-306.38,0.00016712,2]
[337801874,1726125337244,-500.0,0.00016712,2]
[337801875,1726125337268,-500.0,0.00016712,2]
[337801876,1726125337295,-1009.6,0.00016712,2]
[337801877,1726125337319,-500.0,0.00016712,2]
[337801878,1726125337343,-500.0,0.00016712,2]
[337801879,1726125337367,-500.0,0.00016712,2]
[337801880,1726125337391,-1304.35,0.00016712,2]
[337801881,1726125337414,-500.0,0.00016712,2]
[337801882,1726125337439,-7104.91,0.00016712,2]
[337801883,1726125337461,-501.80186464,0.00016712,2]
[337801884,1726125337483,-500.0,0.00016712,2]
[337801885,1726125337506,-500.0,0.00016712,2]
[337801886,1726125337529,-500.0,0.00016712,2]
[337801887,1726125337552,-500.0,0.00016712,2]
[337801888,1726125337575,-500.0,0.00016712,2]
[337801889,1726125337599,-500.0,0.00016712,2]
[337801890,1726125337621,-500.0,0.00016712,2]
[337801891,1726125337646,-495.75550351,0.00016712,2]
[337801892,1726125337670,-500.0,0.00016712,2]
[337801893,1726125337692,-498.06258291,0.00016712,2]
[337801894,1726125337715,-500.0,0.00016712,2]
[337801895,1726125337738,-500.0,0.00016712,2]
[337801896,1726125337760,-500.0,0.00016712,2]
[337801897,1726125337785,-500.0,0.00016712,2]
[337801898,1726125337812,-500.0,0.00016712,2]
[337801899,1726125337836,-500.0,0.00016712,2]
[337801900,1726125337860,-1270.49,0.00016712,2]
[337801901,1726125337885,-500.0,0.00016712,2]
[337801902,1726125337910,-500.0,0.00016712,2]
[337801903,1726125337938,-500.0,0.00016712,2]
[337801904,1726125337963,-549.06,0.00016712,2]
[337801905,1726125337990,-553.07,0.00016712,2]
[337801906,1726125338017,-500.0,0.00016712,2]
[337801907,1726125338043,-500.0,0.00016712,2]
[337801908,1726125338070,-500.0,0.00016712,2]
[337801909,1726125338093,-504.83752884,0.00016712,2]
[337801910,1726125338117,-500.0,0.00016712,2]
[337801911,1726125338141,-132.42331084,0.00016986,2]
[337801912,1726125338164,-500.0,0.00016986,2]
[337801913,1726125338188,-500.0,0.00016986,2]
[337801914,1726125338211,-660.8,0.00016986,2]
[337801915,1726125338235,-500.0,0.00016986,2]
[337801916,1726125338259,-500.0,0.00016986,2]
[337801917,1726125338284,-500.0,0.00016986,2]
[337801918,1726125338308,-500.0,0.00016986,2]
[337801919,1726125338334,-5757.7,0.00016986,2]
[337801920,1726125338359,-1149.6,0.00016986,2]
[337801921,1726125338385,-500.0,0.00016986,2]
[337801922,1726125338409,-886.28,0.00016986,2]
[337801923,1726125338435,-2028.47,0.00016986,2]
[337801924,1726125338461,-635.05,0.00016986,2]
[337801925,1726125338484,-500.0,0.00016986,2]
[337801926,1726125338510,-500.0,0.00016986,2]
[337801927,1726125338537,-616.53,0.00016986,2]
[337801928,1726125338564,-669.01,0.00016986,2]
[337801929,1726125338590,-500.0,0.00016986,2]
[337801930,1726125338616,-615.82,0.00016986,2]
[337801931,1726125338644,-7400.22,0.00016986,2]
[337801932,1726125338670,-817.82,0.00016986,2]
[337801933,1726125338694,-171.38074448,0.00016986,2]
[337801934,1726125338721,-1054.74,0.00016986,2]
[337801935,1726125338745,-500.0,0.00016986,2]
[337801936,1726125338771,-500.0,0.00016986,2]
[337801937,1726125338795,-500.0,0.00016986,2]
[337801938,1726125338820,-500.0,0.00016986,2]
[337801939,1726125338845,-500.0,0.00016986,2]
[337801940,1726125338871,-500.0,0.00016986,2]
[337801941,1726125338899,-500.0,0.00016986,2]
[337801942,1726125338922,-500.0,0.00016986,2]
[337801943,1726125338948,-500.0,0.00016986,2]
[337801944,1726125338972,-500.0,0.00016986,2]
[337801945,1726125338997,-1009.6,0.00016986,2]
[337801946,1726125339021,-500.0,0.00016986,2]
[337801947,1726125339045,-500.0,0.00016986,2]
[337801948,1726125339070,-1304.35,0.00016986,2]
[337801949,1726125339097,-788.28355314,0.00016986,2]
[337801950,1726125366331,5000.0,0.00016003,2]
[337801951,1726125375109,5000.0,0.00016003,2]
[337801952,1726125383216,5000.0,0.00016003,2]
[337801953,1726125392097,5000.0,0.00016003,2]
[337801954,1726125400037,5000.0,0.00016003,2]
[337801955,1726125408457,5000.0,0.00016003,2]
[337801956,1726125416378,5000.0,0.00016003,2]
[337801957,1726125425434,5000.0,0.00016003,2]
[337801958,1726125433350,5000.0,0.00016003,2]
[337801959,1726125441273,732.40484957,0.00016003,2]
[337801961,1726125449286,5000.0,0.00016003,2]
[337801962,1726125465354,5000.0,0.00016003,2]
[337801963,1726125482223,5000.0,0.00016003,2]
[337801964,1726125497650,5000.0,0.00016003,2]
[337801965,1726125513039,5000.0,0.00016003,2]
[337801966,1726125529500,5000.0,0.00016003,2]
[337801967,1726125544748,5000.0,0.00016003,2]
[337801968,1726125553010,250.0,0.0001556,2]
[337801969,1726125553223,250.0,0.00015602,2]
[337801970,1726125553454,250.0,0.00015645,2]
[337801971,1726125553663,250.0,0.00015688,2]
[337801972,1726125553869,250.0,0.0001573,2]
[337801973,1726125554078,250.0,0.00015773,2]
[337801974,1726125554302,250.0,0.00015816,2]
[337801975,1726125554513,250.0,0.00015859,2]
[337801976,1726125554713,250.0,0.00015901,2]
[337801977,1726125554932,250.0,0.00015944,2]
[337801978,1726125555147,250.0,0.00015987,2]
[337801979,1726125560086,5000.0,0.00016003,2]
[337801980,1726125575876,5000.0,0.00016003,2]
[337801981,1726125581226,24900.0,0.00015295,2]
[337801982,1726125591044,3493.60909957,0.00016003,2]
[337801983,1726125633372,1651.71661334,0.00015929,2]
[337801985,1726125653819,1289.3502653,0.00015442,2]
[337801986,1726125693757,-250.0,0.00016029,2]
[337801987,1726125693787,-250.0,0.00016072,2]
[337801988,1726125693816,-250.0,0.00016115,2]
[337801989,1726125693843,-250.0,0.00016157,2]
[337801990,1726125693874,-250.0,0.000162,2]
[337801991,1726125693905,-250.0,0.00016243,2]
[337801992,1726125693934,-250.0,0.00016285,2]
[337801993,1726125693962,-250.0,0.00016328,2]
[337801994,1726125693992,-6241.07477848,0.00016338,2]
[337801995,1726125694025,-250.0,0.00016371,2]
[337801996,1726125694059,-150.112233,0.000164,2]
[337801997,1726125694089,-300.0,0.00016427,2]
[337801998,1726125694121,-15668.4941554,0.00016428,2]
[337801999,1726125694152,-795.70429837,0.00016428,2]
[337802000,1726125694182,-500.0,0.00016437,2]
[337802001,1726125694214,-500.0,0.00016437,2]
[337802002,1726125694244,-500.0,0.00016437,2]
[337802003,1726125694274,-620.22058807,0.00016437,2]
[337802004,1726125694305,-500.0,0.00016437,2]
[337802005,1726125694331,-179.07225451,0.00016437,2]
[337802006,1726125694357,-358.82626251,0.00016437,2]
[337802007,1726125694386,-500.0,0.00016437,2]
[337802008,1726125694413,-500.0,0.00016437,2]
[337802009,1726125694439,-556.41895104,0.00016437,2]
[337802010,1726125694467,-500.0,0.00016437,2]
[337802011,1726125694493,-483.05398402,0.00016437,2]
[337802012,1726125694521,-500.0,0.00016437,2]
[337802013,1726125694548,-500.0,0.00016437,2]
[337802014,1726125694579,-500.0,0.00016437,2]
[337802015,1726125694607,-500.0,0.00016437,2]
[337802016,1726125694635,-500.0,0.00016437,2]
[337802017,1726125694663,-169.29215122,0.00016437,2]
[337802018,1726125694691,-500.0,0.00016437,2]
[337802019,1726125694719,-500.0,0.00016437,2]
[337802020,1726125694748,-500.0,0.00016437,2]
[337802021,1726125694776,-500.0,0.00016437,2]
[337802022,1726125694803,-350.0,0.00016437,2]
[337802023,1726125694829,-502.23973073,0.00016438,2]
[337802024,1726125694858,-506.9806889,0.00016438,2]
[337802025,1726125694885,-500.0,0.00016438,2]
[337802026,1726125694913,-500.0,0.00016438,2]
[337802027,1726125694940,-500.0,0.00016438,2]
[337802028,1726125694971,-508.63297351,0.00016438,2]
[337802029,1726125694998,-500.0,0.00016438,2]
[337802030,1726125695023,-500.0,0.00016438,2]
[337802031,1726125695051,-500.0,0.00016438,2]
[337802032,1726125695078,-500.0,0.00016438,2]
[337802033,1726125695106,-500.0,0.00016438,2]
[337802034,1726125695135,-500.0,0.00016438,2]
[337802035,1726125695161,-510.2648053,0.00016438,2]
[337802036,1726125695187,-500.0,0.00016438,2]
[337802037,1726125695213,-500.0,0.00016438,2]
[337802038,1726125695238,-500.0,0.00016438,2]
[337802039,1726125695264,-500.0,0.00016438,2]
[337802040,1726125695291,-506.35302767,0.00016438,2]
[337802041,1726125695316,-500.0,0.00016438,2]
[337802042,1726125695345,-503.26379179,0.00016438,2]
[337802043,1726125695374,-500.0,0.00016438,2]
[337802044,1726125695401,-500.0,0.00016438,2]
[337802045,1726125695427,-500.0,0.00016438,2]
[337802046,1726125695454,-500.0,0.00016438,2]
[337802047,1726125695482,-500.0,0.00016438,2]
[337802048,1726125695509,-508.78125032,0.00016438,2]
[337802049,1726125695537,-501.96867687,0.00016438,2]
[337802050,1726125695563,-500.0,0.00016438,2]
[337802051,1726125695590,-505.59330755,0.00016438,2]
[337802052,1726125695616,-500.0,0.00016438,2]
[337802053,1726125695642,-500.0,0.00016438,2]
[337802054,1726125695668,-500.0,0.00016438,2]
[337802055,1726125695694,-500.0,0.00016438,2]
[337802056,1726125695720,-500.0,0.00016438,2]
[337802057,1726125695745,-523.13097162,0.00016438,2]
[337802058,1726125695770,-500.0,0.00016438,2]
[337802059,1726125695796,-500.0,0.00016438,2]
[337802060,1726125695821,-500.0,0.00016438,2]
[337802061,1726125695846,-506.54690317,0.00016438,2]
[337802062,1726125696163,-500.0,0.00016438,2]
[337802063,1726125696188,-500.0,0.00016438,2]
[337802064,1726125696213,-500.0,0.00016438,2]
[337802065,1726125696238,-663.32,0.00016438,2]
[337802066,1726125696262,-500.0,0.00016438,2]
[337802067,1726125696286,-500.0,0.00016438,2]
[337802068,1726125696311,-500.0,0.00016438,2]
[337802069,1726125696334,-500.40668199,0.00016438,2]
[337802070,1726125696358,-534.50838445,0.00016438,2]
[337802071,1726125696381,-500.0,0.00016438,2]
[337802072,1726125696405,-500.0,0.00016438,2]
[337802073,1726125696427,-435.55519249,0.00016438,2]
[337802074,1726125696449,-500.0,0.00016438,2]
[337802075,1726125696472,-500.0,0.00016438,2]
[337802076,1726125696496,-500.0,0.00016438,2]
[337802077,1726125696519,-500.0,0.00016438,2]
[337802078,1726125696543,-500.0,0.00016438,2]
[337802079,1726125696565,-500.0,0.00016438,2]
[337802080,1726125696588,-500.0,0.00016438,2]
[337802081,1726125696611,-500.0,0.00016438,2]
[337802082,1726125696633,-500.0,0.00016438,2]
[337802083,1726125696656,-500.0,0.00016438,2]
[337802084,1726125696679,-500.0,0.00016438,2]
[337802085,1726125696702,-500.0,0.00016438,2]
[337802086,1726125696724,-500.0,0.00016438,2]
[337802087,1726125696746,-500.0,0.00016438,2]
[337802088,1726125696769,-500.0,0.00016438,2]
[337802089,1726125696791,-500.0,0.00016438,2]
[337802090,1726125696816,-483.35798194,0.00016438,2]
[337802091,1726125696839,-500.0,0.00016438,2]
[337802092,1726125696863,-500.0,0.00016438,2]
[337802093,1726125696886,-500.0,0.00016438,2]
[337802094,1726125696910,-285.90845234,0.00016438,2]
[337802095,1726125696934,-354.40805604,0.00016438,2]
[337802096,1726125696957,-500.0,0.00016438,2]
[337802097,1726125696980,-500.0,0.00016438,2]
[337802098,1726125697004,-500.0,0.00016438,2]
[337802099,1726125697027,-500.0,0.00016438,2]
[337802100,1726125697054,-500.0,0.00016438,2]
[337802101,1726125697078,-500.0,0.00016438,2]
[337802102,1726125697103,-500.0,0.00016438,2]
[337802103,1726125697127,-500.0,0.00016438,2]
[337802104,1726125697153,-500.0,0.00016438,2]
[337802105,1726125697177,-555.46,0.00016438,2]
[337802106,1726125697199,-500.0,0.00016438,2]
[337802107,1726125697223,-503.77257333,0.00016438,2]
[337802108,1726125697247,-500.0,0.00016438,2]
[337802109,1726125697271,-500.0,0.00016438,2]
[337802110,1726125697295,-500.0,0.00016438,2]
[337802111,1726125697319,-500.0,0.00016438,2]
[337802112,1726125697342,-500.0,0.00016438,2]
[337802113,1726125697366,-500.0,0.00016438,2]
[337802114,1726125697389,-500.0,0.00016438,2]
[337802115,1726125697412,-500.0,0.00016438,2]
[337802116,1726125697437,-500.0,0.00016438,2]
[337802117,1726125697461,-500.0,0.00016438,2]
[337802118,1726125697483,-500.0,0.00016438,2]
[337802119,1726125697507,-500.0,0.00016438,2]
[337802120,1726125697531,-500.0,0.00016438,2]
[337802121,1726125697554,-500.0,0.00016438,2]
[337802122,1726125697577,-1068.3,0.00016438,2]
[337802123,1726125697600,-184.57723403,0.00016438,2]
[337802124,1726125697624,-500.0,0.00016438,2]
[337802125,1726125697647,-500.0,0.00016438,2]
[337802126,1726125697670,-500.0,0.00016438,2]
[337802127,1726125697694,-500.0,0.00016438,2]
[337802128,1726125697718,-6743.46,0.00016438,2]
[337802129,1726125697741,-500.0,0.00016438,2]
[337802130,1726125697765,-500.0,0.00016438,2]
[337802131,1726125697790,-500.0,0.00016438,2]
[337802132,1726125697815,-500.0,0.00016438,2]
[337802133,1726125697838,-500.0,0.00016438,2]
[337802134,1726125697861,-500.0,0.00016438,2]
[337802135,1726125697885,-500.0,0.00016438,2]
[337802136,1726125697907,-500.0,0.00016438,2]
[337802137,1726125697931,-501.72951004,0.00016438,2]
[337802138,1726125697955,-500.0,0.00016438,2]
[337802139,1726125697978,-500.0,0.00016438,2]
[337802140,1726125698002,-500.0,0.00016438,2]
[337802141,1726125698026,-500.0,0.00016438,2]
[337802142,1726125698054,-1878.49,0.00016438,2]
[337802143,1726125698077,-500.0,0.00016438,2]
[337802144,1726125698103,-500.0,0.00016438,2]
[337802145,1726125698127,-500.0,0.00016438,2]
[337802146,1726125698151,-500.0,0.00016438,2]
[337802147,1726125698174,-500.0,0.00016438,2]
[337802148,1726125698198,-564.67,0.00016438,2]
[337802149,1726125698222,-506.93504714,0.00016438,2]
[337802150,1726125698247,-500.0,0.00016438,2]
[337802151,1726125698272,-500.0,0.00016438,2]
[337802152,1726125698297,-529.23421623,0.00016438,2]
[337802153,1726125698321,-500.0,0.00016438,2]
[337802154,1726125698347,-500.0,0.00016438,2]
[337802155,1726125698373,-1095.75,0.00016438,2]
[337802156,1726125698397,-541.51,0.00016438,2]
[337802157,1726125698420,-500.0,0.00016438,2]
[337802158,1726125698443,-500.0,0.00016438,2]
[337802159,1726125698466,-500.0,0.00016438,2]
[337802160,1726125698489,-500.0,0.00016438,2]
[337802161,1726125698513,-227.80456766,0.00016438,2]
[337802162,1726125698536,-637.5424142,0.00016438,2]
[337802163,1726125698560,-600.81,0.00016438,2]
[337802164,1726125698585,-500.0,0.00016438,2]
[337802165,1726125698609,-500.0,0.00016438,2]
[337802166,1726125698633,-500.0,0.00016438,2]
[337802167,1726125698658,-500.0,0.00016438,2]
[337802168,1726125698681,-500.0,0.00016438,2]
[337802169,1726125698707,-500.0,0.00016438,2]
[337802170,1726125698734,-500.0,0.00016438,2]
[337802171,1726125698759,-500.0,0.00016438,2]
[337802172,1726125698783,-500.0,0.00016438,2]
[337802173,1726125698807,-464.7,0.00016438,2]
[337802174,1726125698830,-500.71759781,0.00016438,2]
[337802175,1726125698855,-984.39,0.00016438,2]
[337802176,1726125698880,-1033.92,0.00016438,2]
[337802177,1726125699070,-500.0,0.00016438,2]
[337802178,1726125699096,-500.0,0.00016438,2]
[337802179,1726125699122,-500.0,0.00016438,2]
[337802180,1726125699148,-500.0,0.00016438,2]
[337802181,1726125699173,-500.0,0.00016438,2]
[337802182,1726125699200,-500.0,0.00016438,2]
[337802183,1726125699224,-500.0,0.00016438,2]
[337802184,1726125699249,-500.0,0.00016438,2]
[337802185,1726125699275,-500.0,0.00016438,2]
[337802186,1726125699299,-500.0,0.00016438,2]
[337802187,1726125699325,-455.40578428,0.00016438,2]
[337802188,1726125699350,-500.0,0.00016438,2]
[337802189,1726125699374,-778.88,0.00016438,2]
[337802190,1726125699401,-500.0,0.00016438,2]
[337802191,1726125699426,-500.0,0.00016438,2]
[337802192,1726125699452,-500.0,0.00016438,2]
[337802193,1726125699476,-556.11,0.00016438,2]
[337802194,1726125699500,-500.0,0.00016438,2]
[337802195,1726125699525,-500.0,0.00016438,2]
[337802196,1726125699552,-500.0,0.00016438,2]
[337802197,1726125699586,-550.53,0.00016438,2]
[337802198,1726125699610,-500.0,0.00016438,2]
[337802199,1726125699635,-500.0,0.00016438,2]
[337802200,1726125699660,-500.0,0.00016438,2]
[337802201,1726125699685,-500.0,0.00016438,2]
[337802202,1726125699711,-500.0,0.00016438,2]
[337802203,1726125699736,-500.0,0.00016438,2]
[337802204,1726125699762,-1265.94,0.00016438,2]
[337802205,1726125699786,-500.0,0.00016438,2]
[337802206,1726125699814,-500.0,0.00016438,2]
[337802207,1726125699838,-500.0,0.00016438,2]
[337802208,1726125699862,-502.72473416,0.00016438,2]
[337802209,1726125699886,-500.0,0.00016438,2]
[337802210,1726125699911,-500.0,0.00016438,2]
[337802211,1726125699935,-500.0,0.00016438,2]
[337802212,1726125699958,-500.0,0.00016438,2]
[337802213,1726125699983,-851.51,0.00016438,2]
[337802214,1726125700008,-500.0,0.00016438,2]
[337802215,1726125700033,-500.0,0.00016438,2]
[337802216,1726125700063,-572.83,0.00016438,2]
[337802217,1726125700087,-500.0,0.00016438,2]
[337802218,1726125700112,-500.0,0.00016438,2]
[337802219,1726125700139,-500.0,0.00016438,2]
[337802220,1726125700164,-500.0,0.00016438,2]
[337802221,1726125700189,-500.0,0.00016438,2]
[337802222,1726125700214,-500.0,0.00016438,2]
[337802223,1726125700240,-500.0,0.00016438,2]
[337802224,1726125700265,-500.0,0.00016438,2]
[337802225,1726125700290,-687.88,0.00016438,2]
[337802226,1726125700318,-500.0,0.00016438,2]
[337802227,1726125700346,-500.0,0.00016438,2]
[337802228,1726125700376,-591.3,0.00016438,2]
[337802229,1726125700401,-500.0,0.00016438,2]
[337802230,1726125700428,-500.0,0.00016438,2]
[337802231,1726125700455,-500.0,0.00016438,2]
[337802232,1726125700484,-7031.44,0.00016438,2]
[337802233,1726125700511,-500.0,0.00016438,2]
[337802234,1726125700537,-500.0,0.00016438,2]
[337802235,1726125700562,-500.0,0.00016438,2]
[337802236,1726125700587,-500.0,0.00016438,2]
[337802237,1726125700613,-500.0,0.00016438,2]
[337802238,1726125700637,-500.0,0.00016438,2]
[337802239,1726125700662,-500.0,0.00016438,2]
[337802240,1726125700687,-500.0,0.00016438,2]
[337802241,1726125700713,-500.0,0.00016438,2]
[337802242,1726125700737,-500.0,0.00016438,2]
[337802243,1726125700760,-500.0,0.00016438,2]
[337802244,1726125700784,-500.0,0.00016438,2]
[337802245,1726125700807,-345.14022801,0.00016438,2]
[337802246,1726125700830,-602.11132335,0.00016438,2]
[337802247,1726125700853,-500.0,0.00016438,2]
[337802248,1726125700876,-500.38970468,0.00016438,2]
[337802249,1726125700899,-500.0,0.00016438,2]
[337802250,1726125700926,-500.0,0.00016438,2]
[337802251,1726125700951,-500.0,0.00016438,2]
[337802252,1726125700976,-500.0,0.00016438,2]
[337802253,1726125700998,-500.0,0.00016438,2]
[337802254,1726125701021,-638.29,0.00016438,2]
[337802255,1726125701047,-500.0,0.00016438,2]
[337802256,1726125701071,-500.0,0.00016438,2]
[337802257,1726125701095,-500.0,0.00016438,2]
[337802258,1726125701119,-500.0,0.00016438,2]